[Event "Croatian junior league 2021"]
[Site "Rabac"]
[Date "2021.04.09"]
[Round "8.11"]
[White "Baric, Marko"]
[Black "Jakovic, Roko"]
[Result "1-0"]
[ECO "B51"]
[WhiteElo "1936"]
[BlackElo "1846"]
[Annotator "NA"]
[PlyCount "141"]
[EventDate "2021.04.06"]
[EventType "swiss"]
[EventCountry "CRO"]
[SourceTitle "playchess.com"]
[Source "ChessBase"]
[SourceQuality "1"]
[TimeControl "5400+30"]

1. e4 {[%emt 0:01:49]} c5 {[%emt 0:00:00]} 2. Nf3 {[%emt 0:00:08]} d6 {[%emt 0:00:00]} 3. Bb5+ {[%emt 0:00:14]} Nd7 {[%emt 0:00:00]} 4. O-O {[%emt 0:02:46]} a6 {[%emt 0:01:03]} 5. Bd3 {[%emt 0:00:05]} Ngf6 {[%emt 0:00:24]} 6. Qe2 {[%emt 0:00:27]} b5 {[%emt 0:00:24]} 7. c3 {[%emt 0:00:09]} Bb7 {[%emt 0:00:29]} 8. Bc2 {[%emt 0:00:20]} e6 {[%emt 0:00:50]} 9. d4 {[%emt 0:00:10]} Be7 {[%emt 0:00:43]} 10. Rd1 {[%emt 0:01:14]} Qc7 {[%emt 0:03:51]} 11. Bd3 {[%emt 0:04:19]} c4 {[%emt 0:09:18]} 12. Bc2 {[%emt 0:00:08]} O-O {[%emt 0:01:31]} 13. Nbd2 {[%emt 0:00:24]} e5 {[%emt 0:07:00]} 14. d5 {[%emt 0:03:42]} Rfe8 {[%emt 0:08:48]} 15. Nf1 {[%emt 0:01:11]} Nf8 {[%emt 0:00:46]} 16. Ne3 {[%emt 0:08:21]} Ng6 {[%emt 0:04:22]} 17. g3 {[%emt 0:02:54]} Bc8 {[%emt 0:02:06]} 18. Kg2 {[%emt 0:06:49]} h6 {[%emt 0:14:23]} 19. h3 {[%emt 0:03:42]} Bd7 {[%emt 0:03:49]} 20. Nf5 {[%emt 0:08:34]} Bxf5 {[%emt 0:08:07]} 21. exf5 {[%emt 0:00:43]} Nf8 {[%emt 0:01:23]} 22. a4 {[%emt 0:09:59]} N8h7 {[%emt 0:10:40]} 23. Be3 {[%emt 0:05:14]} Bf8 {[%emt 0:01:30]} 24. Qd2 {[%emt 0:02:32]} e4 {[%emt 0:04:12]} 25. Nh4 {[%emt 0:03:04]} Qb7 {[%emt 0:02:19]} 26. Qd4 {[%emt 0:01:59]} Re5 {[%emt 0:08:00]} 27. axb5 {[%emt 0:06:30]} Qxb5 {[%emt 0:00:00]} 28. Ba4 {[%emt 0:03:23]} Qxb2 {[%emt 0:00:00]} 29. Bc6 {[%emt 0:01:22]} Rb8 {[%emt 0:00:00]} 30. Qxc4 {[%emt 0:00:41]} Ng5 {[%emt 0:02:00]} 31. Ra2 {[%emt 0:04:39]} Qb3 {[%emt 0:00:32]} 32. Qxb3 {[%emt 0:00:07]} Rxb3 {[%emt 0:00:01]} 33. Rxa6 {[%emt 0:00:08]} Nf3 {[%emt 0:01:39]} 34. Nxf3 {[%emt 0:00:31]} exf3+ {[%emt 0:00:04]} 35. Kxf3 {[%emt 0:00:08]} Rxf5+ {[%emt 0:01:10]} 36. Kg2 {[%emt 0:00:01]} Rxc3 {[%emt 0:01:30]} 37. g4 {[%emt 0:00:18]} Rxe3 {[%emt 0:03:26]} 38. fxe3 {[%emt 0:00:30]} Re5 {[%emt 0:00:33]} 39. Kf3 {[%emt 0:00:18]} Ne4 {[%emt 0:01:02]} 40. h4 {[%emt 0:02:09]} Nf6 {[%emt 0:00:45]} 41. Ra8 {[%emt 0:00:18]} g5 {[%emt 0:00:43]} 42. hxg5 {[%emt 0:01:31]} Rxg5 {[%emt 0:00:23]} 43. Rd4 {[%emt 0:00:45]} Kg7 {[%emt 0:00:44]} 44. Ra7 {[%emt 0:00:34]} Re5 {[%emt 0:00:30]} 45. Rf4 {[%emt 0:00:56]} Kg6 {[%emt 0:00:38]} 46. e4 {[%emt 0:02:35]} h5 {[%emt 0:01:33]} 47. gxh5+ {[%emt 0:00:43]} Rxh5 {[%emt 0:00:00]} 48. Ke2 {[%emt 0:05:21]} Bh6 {[%emt 0:00:12]} 49. Rf2 {[%emt 0:00:02]} Re5 {[%emt 0:00:26]} 50. Kd3 {[%emt 0:00:57]} Nxe4 {[%emt 0:00:37]} 51. Rfxf7 {[%emt 0:03:16]} Nf6 {[%emt 0:00:31]} 52. Rfe7 {[%emt 0:04:31]} Rh5 {[%emt 0:00:27]} 53. Re6 {[%emt 0:00:27]} Bf4 {[%emt 0:00:19]} 54. Be8+ {[%emt 0:00:09]} Kf5 {[%emt 0:00:41]} 55. Rxf6+ {[%emt 0:00:29]} Kxf6 {[%emt 0:00:08]} 56. Bxh5 {[%emt 0:00:02]} Be5 {[%emt 0:00:24]} 57. Kc4 {[%emt 0:00:09]} Kg5 {[%emt 0:00:04]} 58. Bf7 {[%emt 0:00:04]} Kf4 {[%emt 0:00:03]} 59. Kb5 {[%emt 0:00:12]} Bd4 {[%emt 0:00:02]} 60. Rd7 {[%emt 0:00:31]} Bc5 {[%emt 0:00:13]} 61. Kc6 {[%emt 0:00:08]} Ke5 {[%emt 0:00:09]} 62. Be6 {[%emt 0:00:17]} Bb4 {[%emt 0:00:07]} 63. Bg8 {[%emt 0:00:24]} Bc5 {[%emt 0:00:03]} 64. Re7+ {[%emt 0:00:07]} Kf6 {[%emt 0:00:20]} 65. Rd7 {[%emt 0:01:10]} Ke5 {[%emt 0:00:06]} 66. Bh7 {[%emt 0:00:05]} Ba3 {[%emt 0:00:07]} 67. Bb1 {[%emt 0:00:09]} Bb4 {[%emt 0:00:07]} 68. Re7+ {[%emt 0:00:04]} Kf6 {[%emt 0:00:26]} 69. Re6+ {[%emt 0:00:05]} Kf7 {[%emt 0:00:03]} 70. Rxd6 {[%emt 0:00:11]} Bxd6 {[%emt 0:00:13]} 71. Kxd6 {[%emt 0:00:01]} 1-0

[Event "Croatian junior league 2021"]
[Site "Rabac"]
[Date "2021.04.09"]
[Round "8.12"]
[White "Veverec, Ivo"]
[Black "Denic, Marin"]
[Result "0-1"]
[ECO "C50"]
[WhiteElo "1786"]
[BlackElo "1914"]
[Annotator "NA"]
[PlyCount "142"]
[EventDate "2021.04.06"]
[EventType "swiss"]
[EventCountry "CRO"]
[SourceTitle "playchess.com"]
[Source "ChessBase"]
[SourceQuality "1"]
[TimeControl "5400+30"]

1. e4 {[%emt 0:00:00]} e5 {[%emt 0:00:16]} 2. Nf3 {[%emt 0:00:00]} Nc6 {[%emt 0:00:05]} 3. Bc4 {[%emt 0:00:00]} Bc5 {[%emt 0:00:03]} 4. O-O {[%emt 0:00:13]} Nf6 {[%emt 0:00:05]} 5. d3 {[%emt 0:00:13]} O-O 6. Be3 {[%emt 0:02:56]} Bxe3 {[%emt 0:05:52]} 7. fxe3 {[%emt 0:00:08]} d5 {[%emt 0:00:17]} 8. exd5 {[%emt 0:01:00]} Nxd5 {[%emt 0:00:28]} 9. Qd2 {[%emt 0:01:45]} Be6 {[%emt 0:15:40]} 10. e4 {[%emt 0:04:27]} Nf4 {[%emt 0:02:28]} 11. Bxe6 {[%emt 0:00:24]} Nxe6 {[%emt 0:03:35]} 12. Nc3 {[%emt 0:00:17]} f6 {[%emt 0:01:35]} 13. Nd5 {[%emt 0:13:21]} Ncd4 {[%emt 0:07:51]} 14. b4 {[%emt 0:02:41]} c6 {[%emt 0:04:19]} 15. Ne3 {[%emt 0:00:06]} Qb6 {[%emt 0:10:41]} 16. Kh1 {[%emt 0:01:47]} Rad8 {[%emt 0:08:57]} 17. a3 {[%emt 0:08:56]} Nxf3 {[%emt 0:03:15]} 18. Rxf3 {[%emt 0:00:28]} Ng5 {[%emt 0:00:35]} 19. Rff1 {[%emt 0:10:32]} Nxe4 {[%emt 0:01:13]} 20. Qe1 {[%emt 0:01:11]} Ng5 {[%emt 0:07:38]} 21. h4 {[%emt 0:08:31]} Ne6 {[%emt 0:00:38]} 22. Qg3 {[%emt 0:01:46]} Qc7 {[%emt 0:06:21]} 23. Rae1 {[%emt 0:03:53]} Qd7 {[%emt 0:01:26]} 24. Ng4 {[%emt 0:04:49]} Kh8 {[%emt 0:01:52]} 25. Rf2 {[%emt 0:04:47]} a5 {[%emt 0:04:10]} 26. Ref1 {[%emt 0:00:00]} Nf4 {[%emt 0:01:20]} 27. Qf3 {[%emt 0:00:00]} Qd5 {[%emt 0:02:08]} 28. Qe3 {[%emt 0:00:00]} h5 {[%emt 0:03:28]} 29. Nh2 {[%emt 0:00:00]} axb4 {[%emt 0:00:14]} 30. axb4 {[%emt 0:00:08]} b5 {[%emt 0:02:35]} 31. Nf3 {[%emt 0:02:57]} Ra8 {[%emt 0:00:45]} 32. Kh2 {[%emt 0:01:23]} Qd7 {[%emt 0:04:27]} 33. d4 {[%emt 0:02:21]} Nd5 {[%emt 0:00:30]} 34. Qe4 {[%emt 0:01:40]} Qg4 {[%emt 0:00:14]} 35. Qxg4 {[%emt 0:00:48]} hxg4 {[%emt 0:00:01]} 36. Nxe5 {[%emt 0:00:08]} Rfe8 {[%emt 0:00:44]} 37. Nxc6 {[%emt 0:03:18]} Ra6 {[%emt 0:00:30]} 38. Na5 {[%emt 0:00:24]} Nxb4 {[%emt 0:00:14]} 39. Nb3 {[%emt 0:00:04]} Ra3 {[%emt 0:00:27]} 40. Rf5 {[%emt 0:01:44]} Rb8 {[%emt 0:01:30]} 41. Rc1 {[%emt 0:01:38]} Nxc2 {[%emt 0:00:29]} 42. Rxc2 {[%emt 0:00:12]} Rxb3 {[%emt 0:00:01]} 43. d5 {[%emt 0:00:46]} Rd3 {[%emt 0:00:20]} 44. Rb2 {[%emt 0:01:26]} b4 {[%emt 0:02:02]} 45. Rf4 {[%emt 0:09:35]} b3 {[%emt 0:00:26]} 46. Rxg4 {[%emt 0:00:26]} Rxd5 {[%emt 0:00:22]} 47. Rg3 {[%emt 0:00:03]} Rdb5 {[%emt 0:00:31]} 48. Re3 {[%emt 0:00:12]} Kh7 {[%emt 0:00:48]} 49. Kg3 {[%emt 0:00:06]} Kg6 {[%emt 0:00:13]} 50. Kf3 {[%emt 0:00:14]} Rb4 {[%emt 0:00:44]} 51. g4 {[%emt 0:04:20]} R8b6 {[%emt 0:00:23]} 52. Kg3 {[%emt 0:00:31]} f5 {[%emt 0:00:36]} 53. gxf5+ {[%emt 0:00:27]} Kxf5 {[%emt 0:00:04]} 54. Rf2+ {[%emt 0:00:04]} Kg6 {[%emt 0:00:12]} 55. Rb2 {[%emt 0:00:11]} R6b5 {[%emt 0:01:10]} 56. Rf3 {[%emt 0:00:17]} Kh5 {[%emt 0:00:36]} 57. Re3 {[%emt 0:00:31]} Rg4+ {[%emt 0:00:21]} 58. Kf2 {[%emt 0:00:32]} Rf5+ {[%emt 0:00:37]} 59. Ke1 {[%emt 0:02:16]} Rg1+ {[%emt 0:00:32]} 60. Kd2 {[%emt 0:00:12]} Rg2+ {[%emt 0:00:29]} 61. Kc3 {[%emt 0:01:21]} Rc5+ {[%emt 0:00:08]} 62. Kb4 {[%emt 0:01:35]} Rxb2 {[%emt 0:00:48]} 63. Kxc5 {[%emt 0:00:04]} Rc2+ {[%emt 0:00:38]} 64. Kd4 {[%emt 0:01:31]} b2 {[%emt 0:00:22]} 65. Rb3 {[%emt 0:00:03]} Kxh4 {[%emt 0:00:27]} 66. Kd3 {[%emt 0:00:36]} Rg2 {[%emt 0:00:23]} 67. Ke4 {[%emt 0:00:11]} g5 {[%emt 0:00:38]} 68. Kf5 {[%emt 0:00:24]} Rf2+ {[%emt 0:00:16]} 69. Ke4 {[%emt 0:00:12]} g4 {[%emt 0:00:30]} 70. Rb6 {[%emt 0:01:05]} Kg3 {[%emt 0:00:21]} 71. Rb3+ {[%emt 0:00:26]} Kg2 {[%emt 0:00:12]} 0-1

[Event "Croatian junior league 2021"]
[Site "Rabac"]
[Date "2021.04.09"]
[Round "8.13"]
[White "Ghersinich, Enrico"]
[Black "Begic, Domagoj"]
[Result "0-1"]
[ECO "B01"]
[WhiteElo "2186"]
[BlackElo "1706"]
[Annotator "NA"]
[PlyCount "174"]
[EventDate "2021.04.06"]
[EventType "swiss"]
[EventCountry "CRO"]
[SourceTitle "playchess.com"]
[Source "ChessBase"]
[SourceQuality "1"]
[TimeControl "5400+30"]

1. e4 {[%emt 0:03:51]} d5 {[%emt 0:00:00]} 2. exd5 {[%emt 0:00:13]} Qxd5 {[%emt 0:00:06]} 3. Nc3 {[%emt 0:00:12]} Qa5 {[%emt 0:00:06]} 4. d4 {[%emt 0:00:16]} c6 {[%emt 0:00:08]} 5. Bc4 {[%emt 0:00:20]} Nf6 {[%emt 0:00:21]} 6. Nf3 {[%emt 0:00:39]} Bf5 {[%emt 0:00:32]} 7. O-O {[%emt 0:00:25]} e6 {[%emt 0:00:06]} 8. Re1 {[%emt 0:01:13]} Be7 {[%emt 0:02:19]} 9. Bf4 {[%emt 0:01:33]} O-O {[%emt 0:00:32]} 10. Bb3 {[%emt 0:00:34]} Nbd7 {[%emt 0:00:33]} 11. Ne2 {[%emt 0:03:57]} Rfe8 {[%emt 0:01:36]} 12. Ng3 {[%emt 0:00:22]} Bg6 {[%emt 0:00:15]} 13. Qe2 {[%emt 0:02:05]} Nd5 {[%emt 0:08:36]} 14. Bd2 {[%emt 0:00:27]} Qd8 {[%emt 0:00:31]} 15. Rad1 {[%emt 0:00:29]} Bf6 {[%emt 0:02:36]} 16. c4 {[%emt 0:02:07]} Ne7 {[%emt 0:01:03]} 17. Bc3 {[%emt 0:01:08]} Nf5 {[%emt 0:07:00]} 18. Ne4 {[%emt 0:00:53]} Qc7 {[%emt 0:02:32]} 19. g4 {[%emt 0:06:18]} Nd6 {[%emt 0:01:00]} 20. Nxf6+ {[%emt 0:00:13]} Nxf6 {[%emt 0:00:33]} 21. Ne5 {[%emt 0:00:23]} Nd7 {[%emt 0:11:03]} 22. h4 {[%emt 0:00:23]} h6 {[%emt 0:04:19]} 23. Nxg6 {[%emt 0:00:17]} fxg6 {[%emt 0:00:16]} 24. Qd3 {[%emt 0:04:33]} Nf8 {[%emt 0:01:03]} 25. d5 {[%emt 0:00:08]} exd5 {[%emt 0:01:27]} 26. cxd5 {[%emt 0:00:44]} c5 {[%emt 0:00:11]} 27. Qg3 {[%emt 0:01:00]} b5 {[%emt 0:02:23]} 28. Be5 {[%emt 0:03:07]} Rad8 {[%emt 0:01:33]} 29. Kh2 {[%emt 0:00:10]} Qd7 {[%emt 0:01:28]} 30. a4 {[%emt 0:09:23]} a6 {[%emt 0:03:32]} 31. axb5 {[%emt 0:04:08]} axb5 {[%emt 0:00:30]} 32. Ra1 {[%emt 0:03:43]} c4 {[%emt 0:01:47]} 33. Bc2 {[%emt 0:00:15]} Nf7 {[%emt 0:00:16]} 34. Bc7 {[%emt 0:01:02]} Rxe1 {[%emt 0:05:36]} 35. Rxe1 {[%emt 0:00:14]} Re8 {[%emt 0:01:54]} 36. Rxe8 {[%emt 0:00:34]} Qxe8 {[%emt 0:00:09]} 37. d6 {[%emt 0:02:00]} Qe6 {[%emt 0:02:14]} 38. Qf4 {[%emt 0:08:23]} Ne5 {[%emt 0:15:19]} 39. Kg3 {[%emt 0:00:11]} Nfd7 {[%emt 0:00:53]} 40. h5 {[%emt 0:01:26]} gxh5 {[%emt 0:15:26]} 41. Bf5 {[%emt 0:01:39]} Qd5 {[%emt 0:00:33]} 42. gxh5 {[%emt 0:00:21]} Nf6 {[%emt 0:01:16]} 43. Qe3 {[%emt 0:05:53]} Nxh5+ {[%emt 0:01:49]} 44. Kh2 {[%emt 0:01:19]} Nf3+ {[%emt 0:03:04]} 45. Kg2 {[%emt 0:02:23]} Nh4+ {[%emt 0:01:45]} 46. Kh3 {[%emt 0:03:53]} Qh1+ {[%emt 0:01:34]} 47. Kg4 {[%emt 0:00:05]} Nf6+ {[%emt 0:00:31]} 48. Kf4 {[%emt 0:00:34]} Nd5+ {[%emt 0:00:34]} 49. Ke5 {[%emt 0:00:06]} Nxe3 {[%emt 0:00:12]} 50. Be6+ {[%emt 0:01:26]} Kh7 {[%emt 0:00:37]} 51. d7 {[%emt 0:00:53]} Qc6 {[%emt 0:01:16]} 52. Bg8+ {[%emt 0:01:12]} Kxg8 {[%emt 0:00:15]} 53. d8=Q+ {[%emt 0:00:01]} Kh7 {[%emt 0:00:15]} 54. fxe3 {[%emt 0:00:10]} Ng6+ {[%emt 0:00:32]} 55. Kd4 {[%emt 0:00:12]} b4 {[%emt 0:00:34]} 56. Qd6 {[%emt 0:01:19]} Qxd6+ {[%emt 0:00:34]} 57. Bxd6 {[%emt 0:00:04]} c3 {[%emt 0:00:08]} 58. bxc3 {[%emt 0:00:14]} bxc3 {[%emt 0:00:06]} 59. Kxc3 {[%emt 0:00:05]} Kg8 {[%emt 0:00:09]} 60. Kd4 {[%emt 0:02:36]} Kf7 {[%emt 0:00:14]} 61. Ke4 {[%emt 0:00:11]} Ke6 {[%emt 0:00:14]} 62. Bb4 {[%emt 0:00:06]} Ne7 {[%emt 0:00:41]} 63. Kf3 {[%emt 0:01:15]} g6 {[%emt 0:01:12]} 64. Bc5 {[%emt 0:03:08]} Nd5 {[%emt 0:00:32]} 65. Ba7 {[%emt 0:02:14]} Nf6 {[%emt 0:00:28]} 66. Bb6 {[%emt 0:01:30]} Kf5 {[%emt 0:00:15]} 67. Bc7 {[%emt 0:00:12]} Ne4 {[%emt 0:00:15]} 68. Ba5 {[%emt 0:01:16]} g5 {[%emt 0:00:12]} 69. Be1 {[%emt 0:00:06]} h5 {[%emt 0:00:12]} 70. Ba5 {[%emt 0:01:18]} g4+ {[%emt 0:01:04]} 71. Kg2 {[%emt 0:00:07]} Ke5 {[%emt 0:00:37]} 72. Bc7+ {[%emt 0:02:43]} Kd5 {[%emt 0:00:11]} 73. Bb6 {[%emt 0:00:34]} Kc4 {[%emt 0:00:08]} 74. Bc7 {[%emt 0:00:05]} Kd3 {[%emt 0:00:08]} 75. Bf4 {[%emt 0:00:33]} Ke2 {[%emt 0:00:12]} 76. Bh6 {[%emt 0:00:35]} h4 {[%emt 0:00:21]} 77. Bf4 {[%emt 0:00:04]} h3+ {[%emt 0:00:23]} 78. Kh2 {[%emt 0:00:25]} Kf3 {[%emt 0:00:13]} 79. Bc7 {[%emt 0:00:18]} Kxe3 {[%emt 0:00:12]} 80. Bb6+ {[%emt 0:00:12]} Kf3 {[%emt 0:00:12]} 81. Bc7 {[%emt 0:00:05]} Nd2 {[%emt 0:01:21]} 82. Bd6 {[%emt 0:00:38]} Nf1+ {[%emt 0:01:19]} 83. Kg1 {[%emt 0:00:19]} g3 {[%emt 0:01:04]} 84. Bxg3 {[%emt 0:00:06]} Kxg3 {[%emt 0:00:12]} 85. Kh1 {[%emt 0:00:05]} Nd2 {[%emt 0:00:12]} 86. Kg1 {[%emt 0:00:05]} Ne4 {[%emt 0:00:07]} 87. Kh1 {[%emt 0:00:09]} Nf2+ {[%emt 0:00:08]} 0-1

[Event "Croatian junior league 2021"]
[Site "Rabac"]
[Date "2021.04.09"]
[Round "8.17"]
[White "Bunic, Emanuel"]
[Black "Jakrlin, Mihael"]
[Result "0-1"]
[ECO "D94"]
[WhiteElo "1839"]
[BlackElo "2106"]
[Annotator "NA"]
[PlyCount "96"]
[EventDate "2021.04.06"]
[EventType "swiss"]
[EventCountry "CRO"]
[SourceTitle "playchess.com"]
[Source "ChessBase"]
[SourceQuality "1"]
[TimeControl "5400+30"]

1. d4 {[%emt 0:00:00]} d5 {[%emt 0:05:17]} 2. c4 {[%emt 0:00:00]} c6 {[%emt 0:00:10]} 3. Nc3 {[%emt 0:00:17]} Nf6 {[%emt 0:00:30]} 4. e3 {[%emt 0:00:32]} g6 {[%emt 0:01:41]} 5. Nf3 {[%emt 0:00:51]} Bg7 {[%emt 0:00:10]} 6. Bd3 {[%emt 0:00:52]} O-O {[%emt 0:01:17]} 7. O-O {[%emt 0:00:33]} Nbd7 {[%emt 0:02:06]} 8. b3 {[%emt 0:02:13]} Re8 {[%emt 0:09:46]} 9. Ne5 {[%emt 0:14:14]} Nxe5 {[%emt 0:07:23]} 10. dxe5 {[%emt 0:00:15]} Ne4 {[%emt 0:00:23]} 11. Nxe4 {[%emt 0:08:06]} Bxe5 {[%emt 0:01:59]} 12. Rb1 {[%emt 0:00:49]} dxe4 {[%emt 0:00:08]} 13. Bxe4 {[%emt 0:00:19]} Qa5 {[%emt 0:08:04]} 14. Qc2 {[%emt 0:07:09]} Rd8 {[%emt 0:06:28]} 15. b4 {[%emt 0:03:38]} Qc7 {[%emt 0:00:28]} 16. h3 {[%emt 0:01:01]} Rb8 {[%emt 0:07:53]} 17. f4 {[%emt 0:07:17]} Bg7 {[%emt 0:00:35]} 18. Bb2 {[%emt 0:05:19]} c5 {[%emt 0:02:54]} 19. Bxg7 {[%emt 0:16:51]} Kxg7 {[%emt 0:00:07]} 20. Qc3+ {[%emt 0:00:45]} f6 {[%emt 0:01:10]} 21. b5 {[%emt 0:00:23]} Be6 {[%emt 0:02:36]} 22. Rb2 {[%emt 0:06:05]} Rd6 {[%emt 0:00:37]} 23. Rbf2 {[%emt 0:00:25]} Bf7 {[%emt 0:00:16]} 24. Bc2 {[%emt 0:00:41]} Rbd8 {[%emt 0:00:13]} 25. g4 {[%emt 0:00:57]} Qd7 {[%emt 0:00:50]} 26. a4 {[%emt 0:03:59]} Qe6 {[%emt 0:00:56]} 27. Rc1 {[%emt 0:04:20]} b6 {[%emt 0:01:54]} 28. Bb1 {[%emt 0:01:52]} Rd1+ {[%emt 0:01:39]} 29. Rf1 {[%emt 0:02:34]} Rxf1+ {[%emt 0:00:09]} 30. Kxf1 {[%emt 0:01:58]} Qxc4+ {[%emt 0:00:10]} 31. Qxc4 {[%emt 0:00:29]} Bxc4+ {[%emt 0:00:01]} 32. Rxc4 {[%emt 0:00:23]} Rd1+ {[%emt 0:00:04]} 33. Kf2 {[%emt 0:00:51]} Rxb1 {[%emt 0:00:09]} 34. Kf3 {[%emt 0:04:51]} Kf7 {[%emt 0:00:51]} 35. f5 {[%emt 0:01:33]} e6 {[%emt 0:02:36]} 36. fxe6+ {[%emt 0:00:31]} Kxe6 {[%emt 0:00:07]} 37. Re4+ {[%emt 0:00:49]} Kf7 {[%emt 0:00:08]} 38. Rc4 {[%emt 0:00:33]} Rb4 {[%emt 0:01:03]} 39. Rxb4 {[%emt 0:00:41]} cxb4 {[%emt 0:00:02]} 40. Ke4 {[%emt 0:00:33]} Ke6 {[%emt 0:00:03]} 41. Kd4 {[%emt 0:00:38]} b3 {[%emt 0:00:06]} 42. Kc3 {[%emt 0:00:29]} Ke5 {[%emt 0:00:02]} 43. Kxb3 {[%emt 0:00:12]} Ke4 {[%emt 0:00:01]} 44. Kc4 {[%emt 0:01:02]} f5 {[%emt 0:00:08]} 45. a5 {[%emt 0:01:39]} fxg4 {[%emt 0:00:10]} 46. hxg4 {[%emt 0:00:05]} h5 {[%emt 0:00:04]} 47. axb6 {[%emt 0:00:26]} axb6 {[%emt 0:00:02]} 48. gxh5 {[%emt 0:00:10]} gxh5 {[%emt 0:00:01]} 0-1

[Event "Croatian junior league 2021"]
[Site "Rabac"]
[Date "2021.04.09"]
[Round "8.18"]
[White "Troselj, Ivan"]
[Black "Zadro, Matej"]
[Result "1/2-1/2"]
[ECO "C26"]
[WhiteElo "1962"]
[BlackElo "1742"]
[Annotator "NA"]
[PlyCount "53"]
[EventDate "2021.04.06"]
[EventType "swiss"]
[EventCountry "CRO"]
[SourceTitle "playchess.com"]
[Source "ChessBase"]
[SourceQuality "1"]
[TimeControl "5400+30"]

1. e4 {[%emt 0:04:11]} e5 {[%emt 0:01:33]} 2. Nc3 {[%emt 0:00:05]} Nf6 {[%emt 0:00:04]} 3. g3 {[%emt 0:00:07]} d5 {[%emt 0:00:17]} 4. exd5 {[%emt 0:00:05]} Nxd5 {[%emt 0:00:03]} 5. Bg2 {[%emt 0:00:05]} Nxc3 {[%emt 0:00:05]} 6. bxc3 {[%emt 0:00:03]} Bc5 {[%emt 0:00:03]} 7. Ne2 {[%emt 0:00:32]} Nc6 {[%emt 0:00:17]} 8. Rb1 {[%emt 0:00:05]} O-O {[%emt 0:00:30]} 9. O-O {[%emt 0:00:12]} Bb6 {[%emt 0:01:04]} 10. d3 {[%emt 0:02:08]} Bg4 {[%emt 0:03:08]} 11. h3 {[%emt 0:02:14]} Be6 {[%emt 0:00:44]} 12. c4 {[%emt 0:00:11]} Rb8 {[%emt 0:06:26]} 13. Ba3 {[%emt 0:11:09]} Re8 {[%emt 0:02:04]} 14. Kh2 {[%emt 0:11:31]} Nd4 {[%emt 0:14:33]} 15. c3 {[%emt 0:05:55]} Nxe2 {[%emt 0:04:10]} 16. Qxe2 {[%emt 0:00:04]} c6 {[%emt 0:02:58]} 17. Rb2 {[%emt 0:04:05]} Bf5 {[%emt 0:15:31]} 18. Rd1 {[%emt 0:02:01]} Bc7 {[%emt 0:06:00]} 19. Bc5 {[%emt 0:03:25]} b6 {[%emt 0:03:21]} 20. Bxc6 {[%emt 0:09:35]} bxc5 {[%emt 0:08:21]} 21. Rxb8 {[%emt 0:00:02]} Qxb8 {[%emt 0:00:25]} 22. Bxe8 {[%emt 0:00:04]} Qxe8 {[%emt 0:00:12]} 23. d4 {[%emt 0:00:08]} g6 {[%emt 0:07:03]} 24. d5 {[%emt 0:03:18]} Bd6 {[%emt 0:04:32]} 25. h4 {[%emt 0:03:06]} e4 {[%emt 0:03:07]} 26. Re1 {[%emt 0:04:13]} Be5 {[%emt 0:08:08]} 27. Qe3 {[%emt 0:01:23]} 1/2-1/2

[Event "Croatian junior league 2021"]
[Site "Rabac"]
[Date "2021.04.09"]
[Round "8.19"]
[White "Horcicka, Jan"]
[Black "Birkic, Josip"]
[Result "1/2-1/2"]
[ECO "B33"]
[WhiteElo "1698"]
[BlackElo "1972"]
[Annotator "NA"]
[PlyCount "74"]
[EventDate "2021.04.06"]
[EventType "swiss"]
[EventCountry "CRO"]
[SourceTitle "playchess.com"]
[Source "ChessBase"]
[SourceQuality "1"]
[TimeControl "5400+30"]

1. e4 {[%emt 0:00:00]} c5 {[%emt 0:05:31]} 2. Nf3 {[%emt 0:00:00]} Nc6 {[%emt 0:00:07]} 3. d4 {[%emt 0:00:00]} cxd4 {[%emt 0:00:09]} 4. Nxd4 {[%emt 0:00:00]} Nf6 {[%emt 0:00:10]} 5. Nc3 {[%emt 0:00:03]} e5 {[%emt 0:00:09]} 6. Ndb5 {[%emt 0:00:49]} d6 {[%emt 0:00:10]} 7. Bg5 {[%emt 0:00:29]} a6 {[%emt 0:00:50]} 8. Na3 {[%emt 0:00:02]} b5 {[%emt 0:00:32]} 9. Nd5 {[%emt 0:00:34]} Be7 {[%emt 0:00:23]} 10. Bxf6 {[%emt 0:00:44]} Bxf6 {[%emt 0:00:23]} 11. c3 {[%emt 0:00:06]} O-O {[%emt 0:03:36]} 12. Nc2 {[%emt 0:00:33]} Bg5 {[%emt 0:00:37]} 13. a4 {[%emt 0:00:26]} Rb8 {[%emt 0:03:43]} 14. axb5 {[%emt 0:03:14]} axb5 {[%emt 0:02:03]} 15. Nce3 {[%emt 0:00:01]} b4 {[%emt 0:02:55]} 16. Bc4 {[%emt 0:01:56]} bxc3 {[%emt 0:16:46]} 17. bxc3 {[%emt 0:00:02]} Bxe3 {[%emt 0:02:18]} 18. Nxe3 {[%emt 0:00:05]} Be6 {[%emt 0:01:29]} 19. O-O {[%emt 0:00:38]} Qc7 {[%emt 0:07:30]} 20. Qe2 {[%emt 0:01:18]} Ne7 {[%emt 0:04:55]} 21. Rfd1 {[%emt 0:01:11]} Rb6 {[%emt 0:06:58]} 22. Bxe6 {[%emt 0:14:34]} fxe6 {[%emt 0:01:15]} 23. Qc4 {[%emt 0:00:03]} Qd7 {[%emt 0:03:30]} 24. Qa2 {[%emt 0:00:14]} Rc6 {[%emt 0:05:53]} 25. h3 {[%emt 0:09:25]} Rfc8 {[%emt 0:10:21]} 26. Rac1 {[%emt 0:02:47]} Ng6 {[%emt 0:06:19]} 27. Rc2 {[%emt 0:04:16]} h6 {[%emt 0:02:22]} 28. Rcd2 {[%emt 0:01:27]} Qf7 {[%emt 0:04:17]} 29. Rxd6 {[%emt 0:01:40]} Rxd6 {[%emt 0:03:25]} 30. Rxd6 {[%emt 0:00:03]} Rxc3 {[%emt 0:01:26]} 31. Qxe6 {[%emt 0:00:42]} Qxe6 {[%emt 0:00:33]} 32. Rxe6 {[%emt 0:00:01]} Kf7 {[%emt 0:00:27]} 33. Ra6 {[%emt 0:00:52]} Ne7 {[%emt 0:01:26]} 34. Ra7 {[%emt 0:00:33]} Rc1+ {[%emt 0:01:22]} 35. Kh2 {[%emt 0:00:01]} Ke6 {[%emt 0:00:23]} 36. Ra6+ {[%emt 0:03:43]} Rc6 {[%emt 0:00:58]} 37. Rxc6+ {[%emt 0:00:18]} Nxc6 {[%emt 0:00:01]} 1/2-1/2

[Event "Croatian junior league 2021"]
[Site "Rabac"]
[Date "2021.04.09"]
[Round "8.20"]
[White "Zekic, Patrik"]
[Black "Kostic, Lovro"]
[Result "1/2-1/2"]
[ECO "A42"]
[WhiteElo "1731"]
[BlackElo "1367"]
[Annotator "NA"]
[PlyCount "49"]
[EventDate "2021.04.06"]
[EventType "swiss"]
[EventCountry "CRO"]
[SourceTitle "playchess.com"]
[Source "ChessBase"]
[SourceQuality "1"]
[TimeControl "5400+30"]

1. d4 {[%emt 0:05:25]} g6 {[%emt 0:00:00]} 2. c4 {[%emt 0:00:16]} Bg7 {[%emt 0:00:00]} 3. Nc3 {[%emt 0:00:31]} d6 {[%emt 0:00:02]} 4. e4 {[%emt 0:00:11]} Nd7 {[%emt 0:00:12]} 5. Nf3 {[%emt 0:00:34]} e5 {[%emt 0:00:16]} 6. d5 {[%emt 0:00:20]} Ne7 {[%emt 0:00:19]} 7. Bd3 {[%emt 0:02:04]} h6 {[%emt 0:01:49]} 8. Qc2 {[%emt 0:07:31]} Nc5 {[%emt 0:03:49]} 9. Be3 {[%emt 0:12:46]} Nxd3+ {[%emt 0:01:31]} 10. Qxd3 {[%emt 0:00:02]} f5 {[%emt 0:00:39]} 11. O-O-O {[%emt 0:02:48]} f4 {[%emt 0:02:00]} 12. Bd2 {[%emt 0:00:03]} a5 {[%emt 0:03:59]} 13. h4 {[%emt 0:02:05]} Bd7 {[%emt 0:04:17]} 14. g3 {[%emt 0:03:31]} fxg3 {[%emt 0:08:46]} 15. fxg3 {[%emt 0:03:06]} O-O {[%emt 0:01:52]} 16. Rdf1 {[%emt 0:03:07]} Qe8 {[%emt 0:04:38]} 17. Ne1 {[%emt 0:04:58]} Rb8 {[%emt 0:05:10]} 18. Rxf8+ {[%emt 0:24:03]} Bxf8 {[%emt 0:00:46]} 19. Ng2 {[%emt 0:10:24]} b5 {[%emt 0:07:42]} 20. Ne3 {[%emt 0:05:04]} Kh7 {[%emt 0:07:52]} 21. Qe2 {[%emt 0:01:30]} bxc4 {[%emt 0:03:42]} 22. Qxc4 {[%emt 0:04:11]} c6 {[%emt 0:02:02]} 23. dxc6 {[%emt 0:04:10]} Nxc6 {[%emt 0:00:49]} 24. Ned5 {[%emt 0:01:11]} Bg7 {[%emt 0:04:52]} 25. Rf1 {[%emt 0:00:45]} 1/2-1/2